[Event "Turkish Club Cup 2019"]
[Site "Konya"]
[Date "2019.07.16"]
[Round "1"]
[White "Tocoglu, Onur"]
[Black "Ererdem, Gani Eren"]
[Result "1/2-1/2"]
[ECO "B15"]
[WhiteElo "1718"]
[BlackElo "2140"]
[Annotator "ChessBase"]
[PlyCount "107"]
[EventDate "2019.07.16"]
[EventType "team-tourn"]
[EventCountry "TUR"]
[SourceTitle "playchess.com"]
[Source "ChessBase"]
[SourceQuality "1"]
[TimeControl "5400+30"]

1. e4 {[%emt 0:00:30]} g6 {[%emt 0:00:30]} 2. d4 {[%emt 0:00:30]} Bg7 {[%emt 0:00:30]} 3. Nc3 {[%emt 0:00:00]} c6 {[%emt 0:00:30]} 4. Be3 {[%emt 0:00:00]} d5 {[%emt 0:01:30]} 5. exd5 {[%emt 0:08:30]} cxd5 {[%emt 0:01:30]} 6. Bb5+ {[%emt 0:00:00]} Bd7 {[%emt 0:05:30]} 7. Bxd7+ {[%emt 0:04:00]} Qxd7 {[%emt 0:00:00]} 8. Nf3 {[%emt 0:01:30]} Nc6 {[%emt 0:00:00]} 9. Qd2 {[%emt 0:03:30]} e6 {[%emt 0:07:30]} 10. O-O {[%emt 0:08:30]} Nge7 {[%emt 0:32:30]} 11. Bh6 {[%emt 0:13:30]} Bxh6 {[%emt 0:00:30]} 12. Qxh6 {[%emt 0:01:30]} Nf5 {[%emt 0:00:30]} 13. Qf4 {[%emt 0:00:00]} O-O {[%emt 0:02:30]} 14. Ne2 {[%emt 0:03:00]} f6 {[%emt 0:03:30]} 15. c3 {[%emt 0:02:30]} e5 {[%emt 0:16:30]} 16. dxe5 {[%emt 0:03:30]} fxe5 {[%emt 0:01:30]} 17. Qg5 {[%emt 0:06:30]} e4 {[%emt 0:14:21]} 18. Nfd4 {[%emt 0:06:30]} Ncxd4 {[%emt 0:01:07]} 19. Nxd4 {[%emt 0:02:30]} Nxd4 {[%emt 0:07:53]} 20. cxd4 {[%emt 0:00:30]} Qf5 {[%emt 0:00:30]} 21. Qe3 {[%emt 0:00:30]} Rac8 {[%emt 0:00:30]} 22. Rac1 {[%emt 0:00:30]} Qd7 {[%emt 0:00:30]} 23. Qb3 {[%emt 0:00:30]} Rc6 {[%emt 0:00:30]} 24. Qa4 {[%emt 0:00:30]} a6 {[%emt 0:00:30]} 25. Rxc6 {[%emt 0:00:30]} Qxc6 {[%emt 0:00:30]} 26. Qxc6 {[%emt 0:00:30]} bxc6 {[%emt 0:00:30]} 27. Rc1 {[%emt 0:00:30]} Rb8 {[%emt 0:00:30]} 28. b3 {[%emt 0:00:30]} Rb6 {[%emt 0:00:30]} 29. Kf1 {[%emt 0:00:30]} Kf7 {[%emt 0:00:30]} 30. Ke2 {[%emt 0:00:30]} Ke6 {[%emt 0:00:30]} 31. Rc3 {[%emt 0:00:30]} Kd6 {[%emt 0:00:00]} 32. a3 {[%emt 0:04:30]} Rb5 {[%emt 0:01:22]} 33. f3 {[%emt 0:00:30]} exf3+ {[%emt 0:00:42]} 34. Kxf3 {[%emt 0:00:30]} Rb7 {[%emt 0:00:33]} 35. b4 {[%emt 0:01:30]} Re7 {[%emt 0:00:58]} 36. Re3 {[%emt 0:00:30]} Rf7+ {[%emt 0:00:04]} 37. Ke2 {[%emt 0:00:00]} Rf4 {[%emt 0:00:00]} 38. Rf3 {[%emt 0:09:27]} Rxd4 {[%emt 0:01:14]} 39. Rf6+ {[%emt 0:00:03]} Kc7 {[%emt 0:00:08]} 40. Rf7+ {[%emt 0:00:30]} Kb6 {[%emt 0:00:12]} 41. Rxh7 {[%emt 0:00:30]} Re4+ {[%emt 0:00:49]} 42. Kd2 {[%emt 0:00:30]} Rf4 {[%emt 0:00:29]} 43. Ke2 {[%emt 0:01:37]} Rc4 {[%emt 0:00:35]} 44. Kd2 {[%emt 0:03:25]} Kb5 {[%emt 0:00:27]} 45. Ra7 {[%emt 0:01:55]} Kb6 {[%emt 0:00:29]} 46. Rg7 {[%emt 0:00:27]} Rg4 {[%emt 0:00:30]} 47. g3 {[%emt 0:00:02]} a5 {[%emt 0:00:29]} 48. Kc3 {[%emt 0:01:45]} axb4+ {[%emt 0:01:03]} 49. axb4 {[%emt 0:00:02]} Rc4+ {[%emt 0:00:00]} 50. Kb3 {[%emt 0:00:25]} Rg4 {[%emt 0:00:33]} 51. Kc3 {[%emt 0:00:18]} Rc4+ {[%emt 0:00:49]} 52. Kb3 {[%emt 0:00:02]} Rg4 {[%emt 0:00:27]} 53. Kc3 {[%emt 0:00:30]} Rc4+ {[%emt 0:00:30]} 54. Kb3 {[%emt 0:00:00]} 1/2-1/2

[Event "Turkish Club Cup 2019"]
[Site "Konya"]
[Date "2019.07.16"]
[Round "1"]
[White "Asikoglu, Engin Can"]
[Black "Polat, Ahmet Eren"]
[Result "1-0"]
[ECO "E61"]
[WhiteElo "1701"]
[BlackElo "1651"]
[Annotator "NA"]
[PlyCount "103"]
[EventDate "2019.07.16"]
[EventType "team-tourn"]
[EventCountry "TUR"]
[SourceTitle "playchess.com"]
[Source "ChessBase"]
[SourceQuality "1"]
[TimeControl "5400+30"]

1. d4 {[%emt 0:00:30]} d6 {[%emt 0:00:30]} 2. Bf4 {[%emt 0:02:30]} Nf6 {[%emt 0:00:30]} 3. Nf3 {[%emt 0:00:30]} g6 {[%emt 0:00:30]} 4. e3 {[%emt 0:00:00]} Bg7 {[%emt 0:00:30]} 5. Be2 {[%emt 0:00:00]} b6 {[%emt 0:00:00]} 6. h3 {[%emt 0:00:30]} Bb7 {[%emt 0:00:00]} 7. c4 {[%emt 0:00:30]} Nbd7 {[%emt 0:00:30]} 8. Nc3 {[%emt 0:00:30]} e6 {[%emt 0:00:30]} 9. O-O {[%emt 0:00:30]} O-O {[%emt 0:01:30]} 10. Rc1 {[%emt 0:01:30]} Qe7 {[%emt 0:00:30]} 11. b4 {[%emt 0:02:30]} e5 {[%emt 0:02:30]} 12. Bh2 {[%emt 0:01:30]} Ne4 {[%emt 0:01:30]} 13. Nd5 {[%emt 0:06:30]} Qd8 {[%emt 0:04:30]} 14. Qc2 {[%emt 0:02:30]} f5 {[%emt 0:02:30]} 15. dxe5 {[%emt 0:00:30]} dxe5 {[%emt 0:01:30]} 16. Rfd1 {[%emt 0:02:30]} c6 {[%emt 0:01:30]} 17. Nc3 {[%emt 0:05:30]} Nxc3 {[%emt 0:01:30]} 18. Qxc3 {[%emt 0:00:00]} e4 {[%emt 0:04:30]} 19. Ne5 {[%emt 0:00:00]} Bxe5 {[%emt 0:08:30]} 20. Bxe5 {[%emt 0:00:30]} Re8 {[%emt 0:04:30]} 21. Bf4 {[%emt 0:01:30]} Qe7 {[%emt 0:03:30]} 22. Bg5 {[%emt 0:02:30]} Qf7 {[%emt 0:14:30]} 23. c5 {[%emt 0:01:30]} b5 {[%emt 0:02:30]} 24. Rd6 {[%emt 0:00:00]} Nf8 {[%emt 0:02:30]} 25. Rcd1 {[%emt 0:05:00]} Rac8 {[%emt 0:02:30]} 26. R1d2 {[%emt 0:02:30]} Rc7 {[%emt 0:00:30]} 27. Bd1 {[%emt 0:00:00]} Bc8 {[%emt 0:02:30]} 28. Bd8 {[%emt 0:06:00]} Rd7 {[%emt 0:08:30]} 29. Bb3 {[%emt 0:04:30]} Ne6 {[%emt 0:00:30]} 30. Qe5 {[%emt 0:05:30]} Rxd6 {[%emt 0:00:30]} 31. Qxd6 {[%emt 0:01:30]} Qb7 {[%emt 0:03:30]} 32. Bc7 {[%emt 0:04:30]} Kg7 {[%emt 0:08:29]} 33. Bxe6 {[%emt 0:08:30]} Bxe6 {[%emt 0:02:19]} 34. Qe5+ {[%emt 0:01:30]} Kf7 {[%emt 0:05:16]} 35. Bd8 {[%emt 0:02:30]} Bd5 {[%emt 0:00:42]} 36. Qf6+ {[%emt 0:04:30]} Kg8 {[%emt 0:00:06]} 37. Rxd5 {[%emt 0:02:30]} cxd5 {[%emt 0:00:38]} 38. c6 {[%emt 0:00:30]} Qc8 {[%emt 0:00:50]} 39. c7 {[%emt 0:00:30]} Re6 {[%emt 0:03:14]} 40. Qd4 {[%emt 0:00:00]} Qd7 {[%emt 0:01:14]} 41. Qxa7 {[%emt 0:02:00]} Rc6 {[%emt 0:01:28]} 42. Qb8 {[%emt 0:05:51]} Kg7 {[%emt 0:01:35]} 43. Kh2 {[%emt 0:03:00]} Rc2 {[%emt 0:00:31]} 44. Qb6 {[%emt 0:02:14]} Qc6 {[%emt 0:03:09]} 45. Qxc6 {[%emt 0:04:27]} Rxc6 {[%emt 0:00:30]} 46. a4 {[%emt 0:00:00]} bxa4 {[%emt 0:03:00]} 47. b5 {[%emt 0:00:00]} Rc1 {[%emt 0:00:49]} 48. b6 {[%emt 0:00:00]} a3 {[%emt 0:00:07]} 49. b7 {[%emt 0:00:16]} a2 {[%emt 0:00:32]} 50. c8=Q {[%emt 0:00:43]} a1=Q {[%emt 0:00:27]} 51. Qxc1 {[%emt 0:00:27]} Qxc1 {[%emt 0:00:12]} 52. b8=Q {[%emt 0:00:00]} 1-0

[Event "Turkish Club Cup 2019"]
[Site "Konya"]
[Date "2019.07.16"]
[Round "1"]
[White "Ozcan, Berk"]
[Black "Gulsoy, Mustafa Alpago"]
[Result "0-1"]
[ECO "B06"]
[WhiteElo "1696"]
[BlackElo "2069"]
[Annotator "NA"]
[PlyCount "114"]
[EventDate "2019.07.16"]
[EventType "team-tourn"]
[EventCountry "TUR"]
[SourceTitle "playchess.com"]
[Source "ChessBase"]
[SourceQuality "1"]
[TimeControl "5400+30"]

1. e4 {[%emt 0:00:30]} g6 {[%emt 0:00:30]} 2. d4 {[%emt 0:00:00]} Bg7 {[%emt 0:00:00]} 3. Nf3 {[%emt 0:00:00]} d6 {[%emt 0:00:00]} 4. Bc4 {[%emt 0:00:30]} a6 {[%emt 0:01:30]} 5. a4 {[%emt 0:00:30]} b6 {[%emt 0:00:30]} 6. O-O {[%emt 0:05:30]} e6 {[%emt 0:01:30]} 7. Qe2 {[%emt 0:05:30]} Ne7 {[%emt 0:01:30]} 8. c3 {[%emt 0:04:30]} Nd7 {[%emt 0:02:30]} 9. Rd1 {[%emt 0:13:30]} Bb7 {[%emt 0:07:30]} 10. Nbd2 {[%emt 0:01:30]} O-O {[%emt 0:06:30]} 11. Bb3 {[%emt 0:08:30]} h6 {[%emt 0:15:30]} 12. Nf1 {[%emt 0:01:30]} Re8 {[%emt 0:03:30]} 13. h3 {[%emt 0:09:30]} Nf8 {[%emt 0:07:30]} 14. Ng3 {[%emt 0:07:30]} Qd7 {[%emt 0:01:30]} 15. e5 {[%emt 0:10:30]} Rad8 {[%emt 0:02:30]} 16. exd6 {[%emt 0:07:30]} cxd6 {[%emt 0:00:30]} 17. Ne4 {[%emt 0:03:18]} f5 {[%emt 0:09:30]} 18. Ng3 {[%emt 0:00:08]} Kh7 {[%emt 0:00:00]} 19. Re1 {[%emt 0:03:03]} Ng8 {[%emt 0:01:00]} 20. h4 {[%emt 0:11:03]} Nf6 {[%emt 0:01:30]} 21. Bc2 {[%emt 0:00:27]} Kh8 {[%emt 0:02:30]} 22. Bf4 {[%emt 0:01:23]} Nd5 {[%emt 0:00:30]} 23. Qd2 {[%emt 0:01:01]} Nxf4 {[%emt 0:00:30]} 24. Qxf4 {[%emt 0:00:03]} Qc6 {[%emt 0:00:30]} 25. Bb3 {[%emt 0:03:24]} e5 {[%emt 0:03:30]} 26. Qd2 {[%emt 0:00:26]} e4 {[%emt 0:02:30]} 27. d5 {[%emt 0:00:30]} Qc5 {[%emt 0:00:00]} 28. Nd4 {[%emt 0:00:05]} Bxd5 {[%emt 0:00:00]} 29. Bxd5 {[%emt 0:01:30]} Qxd5 {[%emt 0:00:30]} 30. h5 {[%emt 0:00:00]} Ne6 {[%emt 0:00:30]} 31. hxg6 {[%emt 0:00:08]} Nxd4 {[%emt 0:00:30]} 32. cxd4 {[%emt 0:00:23]} Qe6 {[%emt 0:02:30]} 33. Nh5 {[%emt 0:01:51]} Qxg6 {[%emt 0:00:30]} 34. Nf4 {[%emt 0:00:02]} Qg5 {[%emt 0:01:30]} 35. g3 {[%emt 0:00:02]} Rc8 {[%emt 0:06:30]} 36. Qe3 {[%emt 0:01:21]} Rc4 {[%emt 0:01:06]} 37. Red1 {[%emt 0:00:28]} Rec8 {[%emt 0:01:18]} 38. Rac1 {[%emt 0:00:26]} b5 {[%emt 0:01:11]} 39. b3 {[%emt 0:00:56]} Rxc1 {[%emt 0:03:30]} 40. Rxc1 {[%emt 0:00:30]} Rxc1+ {[%emt 0:00:30]} 41. Qxc1 {[%emt 0:00:30]} Bxd4 {[%emt 0:00:30]} 42. Qc8+ {[%emt 0:00:30]} Qg8 {[%emt 0:00:30]} 43. Ng6+ {[%emt 0:00:30]} Kg7 {[%emt 0:00:30]} 44. Qxg8+ {[%emt 0:00:30]} Kxg8 {[%emt 0:00:30]} 45. Ne7+ {[%emt 0:00:30]} Kh7 {[%emt 0:00:30]} 46. Nxf5 {[%emt 0:00:30]} Bc5 {[%emt 0:00:30]} 47. axb5 {[%emt 0:00:30]} axb5 {[%emt 0:00:30]} 48. Ne7 {[%emt 0:00:15]} Kg7 {[%emt 0:00:41]} 49. Nd5 {[%emt 0:00:11]} b4 {[%emt 0:00:00]} 50. Kf1 {[%emt 0:00:19]} Kf7 {[%emt 0:00:14]} 51. Ke2 {[%emt 0:00:27]} Ke6 {[%emt 0:00:17]} 52. Nf4+ {[%emt 0:01:08]} Ke5 {[%emt 0:01:02]} 53. f3 {[%emt 0:00:38]} exf3+ {[%emt 0:01:10]} 54. Kxf3 {[%emt 0:00:02]} Kd4 {[%emt 0:00:00]} 55. Ne6+ {[%emt 0:00:37]} Kc3 {[%emt 0:00:37]} 56. Ke4 {[%emt 0:00:30]} Kxb3 {[%emt 0:00:00]} 57. Kd3 {[%emt 0:00:00]} Ka2 {[%emt 0:00:03]} 0-1

[Event "Turkish Club Cup 2019"]
[Site "Konya"]
[Date "2019.07.16"]
[Round "1"]
[White "Uysal, Ugur"]
[Black "Capar, Yusuf"]
[Result "1-0"]
[ECO "E67"]
[WhiteElo "1689"]
[BlackElo "1152"]
[Annotator "NA"]
[PlyCount "61"]
[EventDate "2019.07.16"]
[EventType "team-tourn"]
[EventCountry "TUR"]
[SourceTitle "playchess.com"]
[Source "ChessBase"]
[SourceQuality "1"]
[TimeControl "5400+30"]

1. Nf3 {[%emt 0:00:30]} d6 {[%emt 0:00:30]} 2. d4 {[%emt 0:00:00]} Nf6 {[%emt 0:01:30]} 3. c4 {[%emt 0:00:00]} Nbd7 {[%emt 0:00:30]} 4. g3 {[%emt 0:00:30]} c5 {[%emt 0:02:30]} 5. Bg2 {[%emt 0:02:30]} g6 {[%emt 0:00:30]} 6. O-O {[%emt 0:00:30]} Bg7 {[%emt 0:01:30]} 7. Nc3 {[%emt 0:00:30]} a6 {[%emt 0:01:30]} 8. e4 {[%emt 0:01:30]} O-O {[%emt 0:02:30]} 9. Re1 {[%emt 0:00:30]} e5 {[%emt 0:05:30]} 10. dxe5 {[%emt 0:00:30]} dxe5 {[%emt 0:00:30]} 11. Qe2 {[%emt 0:01:30]} Qc7 {[%emt 0:02:30]} 12. a4 {[%emt 0:00:30]} Re8 {[%emt 0:03:30]} 13. Be3 {[%emt 0:08:30]} b6 {[%emt 0:01:30]} 14. a5 {[%emt 0:00:30]} bxa5 {[%emt 0:01:30]} 15. Nd2 {[%emt 0:01:30]} Rb8 {[%emt 0:03:30]} 16. Reb1 {[%emt 0:00:30]} Bb7 {[%emt 0:03:30]} 17. Nd5 {[%emt 0:00:00]} Nxd5 {[%emt 0:00:30]} 18. cxd5 {[%emt 0:00:00]} Qd6 {[%emt 0:01:30]} 19. Nc4 {[%emt 0:00:30]} Qc7 {[%emt 0:04:30]} 20. Nxa5 {[%emt 0:00:30]} f5 {[%emt 0:00:30]} 21. f3 {[%emt 0:00:00]} Rf8 {[%emt 0:05:30]} 22. Qc4 {[%emt 0:02:00]} Kh8 {[%emt 0:01:30]} 23. b4 {[%emt 0:02:30]} Rfc8 {[%emt 0:02:30]} 24. bxc5 {[%emt 0:00:00]} fxe4 {[%emt 0:00:30]} 25. fxe4 {[%emt 0:00:00]} Ba8 {[%emt 0:01:30]} 26. Rxb8 {[%emt 0:02:30]} Rxb8 {[%emt 0:00:30]} 27. c6 {[%emt 0:00:30]} Nb6 {[%emt 0:00:00]} 28. Qxa6 {[%emt 0:00:30]} Bf8 {[%emt 0:02:00]} 29. Bxb6 {[%emt 0:01:30]} Qxb6+ {[%emt 0:00:30]} 30. Qxb6 {[%emt 0:00:30]} Rxb6 {[%emt 0:00:30]} 31. c7 {[%emt 0:00:30]} 1-0

[Event "Turkish Club Cup 2019"]
[Site "Konya"]
[Date "2019.07.16"]
[Round "1"]
[White "Simsek, Meltem"]
[Black "Tasdelen, Buket"]
[Result "1-0"]
[ECO "A25"]
[WhiteElo "1684"]
[BlackElo "1110"]
[Annotator "NA"]
[PlyCount "71"]
[EventDate "2019.07.16"]
[EventType "team-tourn"]
[EventCountry "TUR"]
[SourceTitle "playchess.com"]
[Source "ChessBase"]
[SourceQuality "1"]
[TimeControl "5400+30"]

1. c4 {[%emt 0:00:30]} e5 {[%emt 0:00:30]} 2. Nc3 {[%emt 0:00:00]} Nf6 {[%emt 0:01:30]} 3. g3 {[%emt 0:00:00]} Nc6 {[%emt 0:00:30]} 4. Bg2 {[%emt 0:06:30]} a6 {[%emt 0:04:30]} 5. e3 {[%emt 0:00:30]} d6 {[%emt 0:15:30]} 6. Nge2 {[%emt 0:00:30]} Be7 {[%emt 0:03:30]} 7. O-O {[%emt 0:00:30]} O-O {[%emt 0:02:30]} 8. b3 {[%emt 0:00:00]} Rb8 {[%emt 0:05:30]} 9. d4 {[%emt 0:01:00]} exd4 {[%emt 0:04:30]} 10. Nxd4 {[%emt 0:00:30]} Nxd4 {[%emt 0:06:30]} 11. exd4 {[%emt 0:02:30]} Re8 {[%emt 0:08:30]} 12. Re1 {[%emt 0:00:00]} h6 {[%emt 0:06:30]} 13. Qd3 {[%emt 0:02:00]} Bg4 {[%emt 0:09:30]} 14. h3 {[%emt 0:01:30]} Bh5 {[%emt 0:00:30]} 15. f4 {[%emt 0:03:30]} Qd7 {[%emt 0:09:48]} 16. f5 {[%emt 0:00:30]} Qc8 {[%emt 0:01:49]} 17. g4 {[%emt 0:03:30]} Bxg4 {[%emt 0:01:17]} 18. hxg4 {[%emt 0:00:00]} Nxg4 {[%emt 0:02:25]} 19. Nd5 {[%emt 0:01:00]} Qd7 {[%emt 0:02:54]} 20. Qg3 {[%emt 0:01:30]} c6 {[%emt 0:04:49]} 21. Nxe7+ {[%emt 0:01:30]} Rxe7 {[%emt 0:01:15]} 22. Rxe7 {[%emt 0:00:00]} Qxe7 {[%emt 0:00:22]} 23. Qxg4 {[%emt 0:00:00]} Qf6 {[%emt 0:00:09]} 24. Bd2 {[%emt 0:02:30]} c5 {[%emt 0:00:49]} 25. Bc3 {[%emt 0:00:30]} Qe7 {[%emt 0:00:28]} 26. Re1 {[%emt 0:00:30]} Qg5 {[%emt 0:00:53]} 27. Qxg5 {[%emt 0:00:30]} hxg5 {[%emt 0:00:30]} 28. dxc5 {[%emt 0:00:00]} dxc5 {[%emt 0:00:00]} 29. Re7 {[%emt 0:00:00]} b6 {[%emt 0:00:00]} 30. Bd5 {[%emt 0:00:00]} Rf8 {[%emt 0:00:15]} 31. Ra7 {[%emt 0:00:00]} Kh7 {[%emt 0:00:32]} 32. Rxf7 {[%emt 0:00:30]} Rxf7 {[%emt 0:00:30]} 33. Bxf7 {[%emt 0:00:00]} Kh6 {[%emt 0:00:25]} 34. Kg2 {[%emt 0:00:00]} g4 {[%emt 0:00:13]} 35. Bg6 {[%emt 0:00:00]} b5 {[%emt 0:03:12]} 36. Bd2# {[%emt 0:00:00]} 1-0

[Event "Turkish Club Cup 2019"]
[Site "Konya"]
[Date "2019.07.16"]
[Round "1"]
[White "Tahaoglu, Erkin"]
[Black "Kucuk, Dogan"]
[Result "0-1"]
[ECO "A36"]
[WhiteElo "1671"]
[BlackElo "2028"]
[Annotator "NA"]
[PlyCount "134"]
[EventDate "2019.07.16"]
[EventType "team-tourn"]
[EventCountry "TUR"]
[SourceTitle "playchess.com"]
[Source "ChessBase"]
[SourceQuality "1"]
[TimeControl "5400+30"]

1. e4 {[%emt 0:00:30]} c5 {[%emt 0:00:30]} 2. Nf3 {[%emt 0:00:30]} e6 {[%emt 0:00:00]} 3. d3 {[%emt 0:00:00]} Nc6 {[%emt 0:00:00]} 4. g3 {[%emt 0:00:00]} g6 {[%emt 0:01:30]} 5. Bg2 {[%emt 0:00:30]} Bg7 {[%emt 0:00:00]} 6. O-O {[%emt 0:00:30]} Nge7 {[%emt 0:00:00]} 7. c4 {[%emt 0:01:30]} O-O {[%emt 0:01:30]} 8. Nc3 {[%emt 0:00:30]} Nd4 {[%emt 0:03:30]} 9. Nxd4 {[%emt 0:02:30]} cxd4 {[%emt 0:00:30]} 10. Nb5 {[%emt 0:01:30]} d6 {[%emt 0:02:30]} 11. Bf4 {[%emt 0:07:30]} e5 {[%emt 0:00:30]} 12. Bd2 {[%emt 0:01:30]} a6 {[%emt 0:01:30]} 13. Na3 {[%emt 0:00:30]} Rb8 {[%emt 0:00:30]} 14. Rc1 {[%emt 0:02:30]} Be6 {[%emt 0:08:30]} 15. f4 {[%emt 0:05:30]} Qd7 {[%emt 0:03:30]} 16. b4 {[%emt 0:03:30]} b5 {[%emt 0:03:30]} 17. fxe5 {[%emt 0:01:30]} dxe5 {[%emt 0:02:30]} 18. Qc2 {[%emt 0:03:30]} Rfc8 {[%emt 0:05:30]} 19. Qb2 {[%emt 0:05:30]} Nc6 {[%emt 0:07:30]} 20. c5 {[%emt 0:04:30]} Qd8 {[%emt 0:05:30]} 21. Nc2 {[%emt 0:00:30]} Qf8 {[%emt 0:01:30]} 22. h4 {[%emt 0:13:30]} Bh6 {[%emt 0:03:30]} 23. Na1 {[%emt 0:06:30]} Rd8 {[%emt 0:06:30]} 24. Kh2 {[%emt 0:01:30]} Be3 {[%emt 0:02:30]} 25. a3 {[%emt 0:04:30]} Qh6 {[%emt 0:02:30]} 26. Nb3 {[%emt 0:06:30]} g5 {[%emt 0:05:30]} 27. Bxe3 {[%emt 0:01:30]} dxe3 {[%emt 0:00:30]} 28. Na5 {[%emt 0:01:30]} Nd4 {[%emt 0:02:30]} 29. c6 {[%emt 0:01:30]} gxh4 {[%emt 0:00:30]} 30. g4 {[%emt 0:00:30]} e2 {[%emt 0:00:30]} 31. c7 {[%emt 0:01:30]} exf1=N+ {[%emt 0:02:30]} 32. Rxf1 {[%emt 0:00:30]} Qe3 {[%emt 0:03:30]} 33. cxd8=Q+ {[%emt 0:01:30]} Rxd8 {[%emt 0:00:30]} 34. Qf2 {[%emt 0:01:57]} Qxf2 {[%emt 0:03:30]} 35. Rxf2 {[%emt 0:00:03]} Rc8 {[%emt 0:00:00]} 36. Kh3 {[%emt 0:08:03]} Rc3 {[%emt 0:00:00]} 37. Bf1 {[%emt 0:00:13]} h5 {[%emt 0:00:30]} 38. Kxh4 {[%emt 0:00:46]} hxg4 {[%emt 0:00:30]} 39. Nb7 {[%emt 0:00:11]} Rxa3 {[%emt 0:00:30]} 40. Nc5 {[%emt 0:00:17]} Ra1 {[%emt 0:03:31]} 41. Bg2 {[%emt 0:02:40]} Kf8 {[%emt 0:03:29]} 42. Kg3 {[%emt 0:02:09]} Ke7 {[%emt 0:00:13]} 43. Rf1 {[%emt 0:00:25]} Ra2 {[%emt 0:00:38]} 44. Rb1 {[%emt 0:04:07]} Kd6 {[%emt 0:02:08]} 45. Bf1 {[%emt 0:00:48]} Kc6 {[%emt 0:00:16]} 46. Nxe6 {[%emt 0:00:25]} fxe6 {[%emt 0:01:21]} 47. Kxg4 {[%emt 0:00:39]} Kb6 {[%emt 0:00:02]} 48. Kg5 {[%emt 0:00:01]} Rf2 {[%emt 0:00:19]} 49. Bh3 {[%emt 0:01:46]} a5 {[%emt 0:00:09]} 50. bxa5+ {[%emt 0:00:05]} Kxa5 {[%emt 0:00:02]} 51. Bg4 {[%emt 0:00:51]} Rg2 {[%emt 0:01:54]} 52. Kf6 {[%emt 0:00:41]} Rxg4 {[%emt 0:02:24]} 53. Kxe5 {[%emt 0:00:02]} Nc6+ {[%emt 0:00:24]} 54. Kxe6 {[%emt 0:01:16]} Rg6+ {[%emt 0:00:22]} 55. Kd5 {[%emt 0:01:03]} Nb4+ {[%emt 0:00:10]} 56. Kd4 {[%emt 0:00:15]} Rd6+ {[%emt 0:00:15]} 57. Kc5 {[%emt 0:00:21]} Rc6+ {[%emt 0:01:16]} 58. Kd4 {[%emt 0:00:02]} Rc8 {[%emt 0:00:42]} 59. Ke3 {[%emt 0:01:29]} Rd8 {[%emt 0:00:46]} 60. Ra1+ {[%emt 0:01:15]} Kb6 {[%emt 0:00:03]} 61. Rd1 {[%emt 0:00:06]} Nc6 {[%emt 0:00:49]} 62. d4 {[%emt 0:00:41]} b4 {[%emt 0:00:02]} 63. d5 {[%emt 0:00:00]} Kb5 {[%emt 0:00:09]} 64. Rc1 {[%emt 0:00:36]} Na5 {[%emt 0:00:16]} 65. Kd3 {[%emt 0:00:57]} Nb3 {[%emt 0:01:20]} 66. Rb1 {[%emt 0:01:36]} Ka4 {[%emt 0:00:04]} 67. Kc4 {[%emt 0:00:39]} Nd2+ {[%emt 0:00:02]} 0-1

[Event "Turkish Club Cup 2019"]
[Site "Konya"]
[Date "2019.07.16"]
[Round "1"]
[White "Guler, Muhammed Talha"]
[Black "Pamuk, Yagiz"]
[Result "1/2-1/2"]
[ECO "B38"]
[WhiteElo "1652"]
[BlackElo "1405"]
[Annotator "NA"]
[PlyCount "86"]
[EventDate "2019.07.16"]
[EventType "team-tourn"]
[EventCountry "TUR"]
[SourceTitle "playchess.com"]
[Source "ChessBase"]
[SourceQuality "1"]
[TimeControl "5400+30"]

1. e4 {[%emt 0:00:30]} c5 {[%emt 0:00:30]} 2. c4 {[%emt 0:00:30]} g6 {[%emt 0:00:30]} 3. Ne2 {[%emt 0:00:00]} Bg7 {[%emt 0:00:00]} 4. d4 {[%emt 0:00:00]} cxd4 {[%emt 0:00:00]} 5. Nxd4 {[%emt 0:00:30]} Nc6 {[%emt 0:00:30]} 6. Be3 {[%emt 0:00:30]} Nf6 {[%emt 0:00:30]} 7. Nc3 {[%emt 0:00:30]} d6 {[%emt 0:00:00]} 8. Be2 {[%emt 0:00:30]} O-O {[%emt 0:00:00]} 9. Qd2 {[%emt 0:00:30]} Bd7 {[%emt 0:00:30]} 10. O-O {[%emt 0:00:30]} Nxd4 {[%emt 0:02:30]} 11. Bxd4 {[%emt 0:00:30]} Bc6 {[%emt 0:00:30]} 12. f3 {[%emt 0:00:30]} Nd7 {[%emt 0:01:30]} 13. Bxg7 {[%emt 0:13:30]} Kxg7 {[%emt 0:00:30]} 14. Qd4+ {[%emt 0:00:30]} Kg8 {[%emt 0:00:30]} 15. b4 {[%emt 0:00:30]} Qb6 {[%emt 0:01:30]} 16. Qxb6 {[%emt 0:00:00]} Nxb6 {[%emt 0:00:30]} 17. a4 {[%emt 0:02:00]} a5 {[%emt 0:01:30]} 18. b5 {[%emt 0:09:30]} Bd7 {[%emt 0:00:30]} 19. Nd5 {[%emt 0:05:30]} Nxd5 {[%emt 0:01:30]} 20. cxd5 {[%emt 0:00:30]} b6 {[%emt 0:00:00]} 21. Rfc1 {[%emt 0:01:30]} Rac8 {[%emt 0:00:00]} 22. Kf2 {[%emt 0:11:30]} Kg7 {[%emt 0:00:30]} 23. Ke3 {[%emt 0:02:30]} Rxc1 {[%emt 0:04:30]} 24. Rxc1 {[%emt 0:00:30]} Rc8 {[%emt 0:00:00]} 25. Rxc8 {[%emt 0:00:30]} Bxc8 {[%emt 0:00:00]} 26. Kd4 {[%emt 0:03:30]} Kf6 {[%emt 0:00:30]} 27. f4 {[%emt 0:00:30]} e5+ {[%emt 0:00:30]} 28. dxe6 {[%emt 0:01:30]} fxe6 {[%emt 0:00:30]} 29. Bf3 {[%emt 0:10:30]} Bd7 {[%emt 0:03:30]} 30. h4 {[%emt 0:05:30]} h6 {[%emt 0:01:30]} 31. g3 {[%emt 0:06:30]} Bc8 {[%emt 0:00:30]} 32. Bg2 {[%emt 0:01:30]} Bd7 {[%emt 0:00:30]} 33. e5+ {[%emt 0:01:30]} dxe5+ {[%emt 0:01:30]} 34. fxe5+ {[%emt 0:00:30]} Ke7 {[%emt 0:00:00]} 35. Ke4 {[%emt 0:03:42]} Be8 {[%emt 0:02:00]} 36. Kf4 {[%emt 0:01:04]} Bf7 {[%emt 0:01:30]} 37. Bc6 {[%emt 0:04:39]} Be8 {[%emt 0:00:30]} 38. Be4 {[%emt 0:00:15]} Bf7 {[%emt 0:03:30]} 39. Bd3 {[%emt 0:02:44]} Kd8 {[%emt 0:00:30]} 40. Kg4 {[%emt 0:02:05]} Ke7 {[%emt 0:00:30]} 41. Kf4 {[%emt 0:03:01]} Be8 {[%emt 0:00:30]} 42. g4 {[%emt 0:00:15]} Bf7 {[%emt 0:00:30]} 43. g5 {[%emt 0:00:24]} h5 {[%emt 0:00:30]} 1/2-1/2